[Event "Karel Janecek Open 2025"]
[Site "Prague"]
[Date "2025.03.05"]
[Round "7.16"]
[White "Filgueiras, Nathan Felipe"]
[Black "Santamaria Fernandez, Guillermo"]
[Result "0-1"]
[Annotator "ChessBase"]
[ECO "B12"]
[WhiteElo "2335"]
[BlackElo "2225"]
[PlyCount "112"]
[EventDate "2025.02.21"]
[EventType "swiss"]
[EventCountry "CZE"]
[SourceTitle "playchess.com"]
[Source "ChessBase"]
[SourceQuality "1"]
[TimeControl "40/5400+30:1800+30"]

1. e4 {[%emt 0:03:04]} c6 {[%emt 0:00:20]} 2. d4 {[%emt 0:01:03]} d5 {[%emt 0:00:28]} 3. e5 {[%emt 0:00:05]} Bf5 {[%emt 0:00:35]} 4. h4 {[%emt 0:04:08]} h5 {[%emt 0:00:30]} 5. Bd3 {[%emt 0:00:04]} Bxd3 {[%emt 0:00:18]} 6. Qxd3 {[%emt 0:00:04]} e6 {[%emt 0:00:35]} 7. Nf3 {[%emt 0:00:14]} Qa5+ {[%emt 0:00:44]} 8. Nbd2 {[%emt 0:00:13]} Nh6 {[%emt 0:00:21]} 9. O-O {[%emt 0:00:53]} Nf5 {[%emt 0:00:23]} 10. Nb3 {[%emt 0:00:59]} Qa6 {[%emt 0:00:16]} 11. Qd1 {[%emt 0:00:07]} Be7 {[%emt 0:00:33]} 12. g3 {[%emt 0:01:05]} Nd7 {[%emt 0:01:31]} 13. c3 {[%emt 0:02:37]} Rc8 {[%emt 0:05:39]} 14. Bg5 {[%emt 0:04:24]} Bxg5 {[%emt 0:01:53]} 15. Nxg5 {[%emt 0:00:11]} g6 {[%emt 0:01:12]} 16. Nc1 {[%emt 0:11:30]} c5 {[%emt 0:02:36]} 17. Ne2 {[%emt 0:01:04]} cxd4 {[%emt 0:04:16]} 18. cxd4 {[%emt 0:00:10]} O-O {[%emt 0:02:52]} 19. Qd2 {[%emt 0:09:53]} Rc4 {[%emt 0:06:23]} 20. b3 {[%emt 0:00:48]} Rc6 {[%emt 0:02:41]} 21. Rfc1 {[%emt 0:04:42]} Rfc8 {[%emt 0:02:05]} 22. Rxc6 {[%emt 0:00:05]} Rxc6 {[%emt 0:02:11]} 23. Nf3 {[%emt 0:01:56]} Qb6 {[%emt 0:04:19]} 24. Kg2 {[%emt 0:06:54]} Nb8 {[%emt 0:04:32]} 25. Rd1 {[%emt 0:04:56]} Na6 {[%emt 0:06:46]} 26. Ne1 {[%emt 0:04:12]} Qb4 {[%emt 0:03:42]} 27. Qf4 {[%emt 0:02:13]} Qa3 {[%emt 0:04:21]} 28. Rd2 {[%emt 0:04:08]} Qe7 {[%emt 0:08:48]} 29. Kh3 {[%emt 0:02:59]} Nc7 {[%emt 0:06:21]} 30. Ng2 {[%emt 0:01:02]} Nb5 {[%emt 0:01:43]} 31. Ne3 {[%emt 0:13:30]} Nxe3 {[%emt 0:02:44]} 32. fxe3 {[%emt 0:00:27]} Qb4 {[%emt 0:02:44]} 33. Rd1 {[%emt 0:00:59]} Rc2 {[%emt 0:00:41]} 34. Rf1 {[%emt 0:01:24]} Qe7 {[%emt 0:00:36]} 35. Ng1 {[%emt 0:01:23]} Nc3 {[%emt 0:00:51]} 36. Rf2 {[%emt 0:01:50]} Rxa2 {[%emt 0:03:28]} 37. Rxa2 {[%emt 0:02:50]} Nxa2 {[%emt 0:00:06]} 38. g4 {[%emt 0:00:45]} hxg4+ {[%emt 0:01:30]} 39. Qxg4 {[%emt 0:00:08]} Nc3 {[%emt 0:01:32]} 40. Qg2 {[%emt 0:04:13]} Ne4 {[%emt 0:01:58]} 41. Nf3 {[%emt 0:32:07]} a5 {[%emt 0:35:58]} 42. h5 {[%emt 0:02:55]} Qf8 {[%emt 0:08:03]} 43. Ng5 {[%emt 0:00:00]} Qh6 {[%emt 0:00:00]} 44. Nxe4 {[%emt 0:00:00]} Qxh5+ {[%emt 0:00:00]} 45. Kg3 {[%emt 0:00:00]} dxe4 {[%emt 0:00:00]} 46. Qxe4 {[%emt 0:00:00]} Qg5+ {[%emt 0:00:00]} 47. Kh2 {[%emt 0:00:00]} Qe7 {[%emt 0:00:00]} 48. Qd3 {[%emt 0:00:00]} Qh4+ {[%emt 0:00:00]} 49. Kg2 {[%emt 0:00:00]} Qg4+ {[%emt 0:00:00]} 50. Kh2 {[%emt 0:00:00]} Qf3 {[%emt 0:00:00]} 51. Qc3 {[%emt 0:00:00]} Qf2+ {[%emt 0:00:00]} 52. Kh1 {[%emt 0:00:00]} Qf1+ {[%emt 0:00:00]} 53. Kh2 {[%emt 0:00:00]} b6 {[%emt 0:00:00]} 54. Kg3 {[%emt 0:00:00]} Kg7 {[%emt 0:00:00]} 55. Kh2 {[%emt 0:00:00]} g5 {[%emt 0:00:00]} 56. Qc7 {[%emt 0:00:00]} g4 {[%emt 0:00:00]} 0-1

[Event "Karel Janecek Open 2025"]
[Site "Prague"]
[Date "2025.03.06"]
[Round "8.1"]
[White "Ioannidis, Evgenios"]
[Black "Grigoryan, Karen H."]
[Result "1/2-1/2"]
[Annotator "TA"]
[ECO "D37"]
[WhiteElo "2484"]
[BlackElo "2554"]
[PlyCount "57"]
[EventDate "2025.02.21"]
[EventType "swiss"]
[EventCountry "CZE"]
[SourceTitle "playchess.com"]
[Source "ChessBase"]
[SourceQuality "1"]
[TimeControl "40/5400+30:1800+30"]

{[%evp 9,57,13,41,29,27,21,47,27,16,10,10,13,26,19,16,9,27,22,21,0,20,15,33,29,25,45,20,30,20,20,21,13,22,16,26,13,16,11,12,12,9,0,0,0,0,0,8,-2,12,0]} 1. d4 {[%emt 0:00:07]} Nf6 {[%emt 0:01:01]} 2. c4 {[%emt 0:00:10]} e6 {[%emt 0:00:19]} 3. Nf3 {[%emt 0:00:23]} d5 {[%emt 0:00:57]} 4. Nc3 {[%emt 0:00:31]} h6 {[%emt 0:00:25]} 5. g3 {[%emt 0:01:18]} dxc4 {[%emt 0:01:49]} 6. Ne5 $146 {[%emt 0:01:35] D37: Queen's Gambit Declined: 5 Bf4.} (6. Bg2 c5 7. O-O Nc6 8. Ne5 Bd7 9. Nxc4 cxd4 10. Nb5 Bc5 11. Nbd6+ Bxd6 12. Nxd6+ Ke7 13. Nxb7 {1-0 Sychev,K (2534)-Melkumyan,H (2634) Chess.com Rapid Wk20 Swiss 2022 (4)}) 6... c5 {[%emt 0:01:16]} 7. Be3 {[%emt 0:01:04]} Nc6 {[%emt 0:01:41]} 8. Qa4 {[%emt 0:05:16] White is slightly better.} (8. Nxc6 {simplifies} bxc6 9. dxc5 Qxd1+ 10. Rxd1 Be7 11. Bg2) 8... Bd7 {[%emt 0:03:23]} 9. Nxd7 {[%emt 0:00:50]} Nxd7 {[%emt 0:00:26]} 10. dxc5 {[%emt 0:00:40]} Bxc5 {[%emt 0:03:12]} 11. Bxc5 {[%emt 0:03:09]} Nxc5 {[%emt 0:00:05]} 12. Qxc4 {[%emt 0:00:05]} Qb6 {[%emt 0:00:05]} 13. Bg2 {[%emt 0:00:54]} O-O {[%emt 0:00:12]} 14. Qb5 {[%emt 0:01:20]} Qxb5 {[%emt 0:03:02]} 15. Nxb5 {[%emt 0:00:06]} Rfd8 {[%emt 0:00:47]} 16. Rc1 {[%emt 0:01:14]} a6 {[%emt 0:00:18]} 17. Na3 {[%emt 0:10:07]} Na4 {[%emt 0:00:38]} 18. b3 {[%emt 0:00:13]} Nb6 {[%emt 0:00:20]} 19. Nc4 {[%emt 0:00:17]} Nxc4 {[%emt 0:02:48]} 20. Rxc4 {[%emt 0:00:04]} Rd6 {[%emt 0:00:14]} 21. Bxc6 {[%emt 0:02:27]} Rad8 {[%emt 0:00:10][%csl Gd8][%cal Rd6d1] [#]} 22. f4 $1 {[%emt 0:03:31]} bxc6 $11 {[%emt 0:01:41][%mdl 4096] Endgame KRR-KRR. The position is equal.} 23. Kf2 {[%emt 0:00:10]} Rd2 {[%emt 0:00:22]} 24. a4 {[%emt 0:01:03][%cal Oh1c1]} Rb2 {[%emt 0:00:11]} 25. Rxc6 {[%emt 0:00:07]} Rdd2 {[%emt 0:00:06]} 26. Re1 {[%emt 0:01:50]} Rxb3 {[%emt 0:00:08]} 27. Rxa6 {[%emt 0:00:03]} Ra2 {[%emt 0:00:11]} 28. a5 {[%emt 0:00:38]} Rba3 {[%emt 0:00:28]} 29. Rc1 {[%emt 0:02:16] Weighted Error Value: White=0.05 (flawless) /Black=0.06 (flawless)   Inaccurate:     	---       	Black=1      OK:         	White=11    	Black=9      Best:        	---       	Black=3} 1/2-1/2

[Event "Karel Janecek Open 2025"]
[Site "Prague"]
[Date "2025.03.06"]
[Round "8.2"]
[White "Vykouk, Jan"]
[Black "Beerdsen, Thomas"]
[Result "1/2-1/2"]
[Annotator "TA"]
[ECO "D12"]
[WhiteElo "2478"]
[BlackElo "2511"]
[PlyCount "101"]
[EventDate "2025.02.21"]
[EventType "swiss"]
[EventCountry "CZE"]
[SourceTitle "playchess.com"]
[Source "ChessBase"]
[SourceQuality "1"]
[TimeControl "40/5400+30:1800+30"]

{[%evp 9,101,26,29,-13,0,-9,8,-32,-12,-6,0,0,0,-9,7,-20,-14,-27,0,-26,-22,-14,-16,-18,-8,-13,0,-50,-39,-67,272,277,256,144,146,146,391,97,85,74,43,65,134,35,41,51,57,19,19,14,23,7,42,15,23,0,66,7,6,-3,0,0,0,0,0,0,10,8,12,8,8,8,3,4,4,4,8,5,6,4,4,0,0,0,0,0,0,0,0,0,0,0,8,0]} 1. Nf3 {[%emt 0:00:04]} d5 {[%emt 0:01:18]} 2. d4 {[%emt 0:00:22]} Nf6 {[%emt 0:00:42]} 3. e3 {[%emt 0:00:13]} c6 {[%emt 0:05:18]} 4. c4 {[%emt 0:01:09]} Bf5 {[%emt 0:00:26]} 5. Nc3 {[%emt 0:00:28]} e6 {[%emt 0:00:05]} 6. cxd5 {[%emt 0:06:46] D12: Slav Defence: 3 Nf3 Nf6 4 e3 Bf5.} exd5 {[%emt 0:00:40]} 7. Nh4 {[%emt 0:00:08]} Bg4 {[%emt 0:06:32]} 8. f3 {[%emt 0:00:28]} Be6 {[%emt 0:08:34]} 9. g3 $146 {[%emt 0:13:41]} ({Predecessor:} 9. Bd3 g6 10. O-O Nh5 11. g3 Bh3 12. Re1 Be7 13. Ng2 O-O 14. g4 Bxg2 15. Kxg2 {½-½ Froewis,G (2453)-Schmider,N (2307) Baden-Baden Swiss 1st 2021 (9)}) 9... Be7 {[%emt 0:13:38]} 10. Ng2 {[%emt 0:04:41]} O-O {[%emt 0:03:42]} 11. Nf4 {[%emt 0:01:42]} Qc8 {[%emt 0:05:45]} 12. e4 {[%emt 0:06:52]} dxe4 {[%emt 0:04:07]} 13. fxe4 {[%emt 0:00:06]} Bg4 {[%emt 0:02:00]} 14. Be2 {[%emt 0:00:39]} Bxe2 {[%emt 0:06:11]} 15. Qxe2 {[%emt 0:00:06]} Re8 {[%emt 0:03:28]} 16. O-O {[%emt 0:01:16]} c5 {[%emt 0:01:01]} 17. d5 {[%emt 0:02:52]} Nbd7 {[%emt 0:05:28]} 18. e5 {[%emt 0:07:01] [#]} ({White should play} 18. Nh5 $11) 18... Bd6 $1 {[%emt 0:02:22]} 19. e6 {[%emt 0:00:03]} Nf8 $2 {[%emt 0:03:29][%mdl 8192]} (19... fxe6 $15 {keeps the upper hand.} 20. dxe6 Qc6 (20... Nf8 21. Nb5 $15)) 20. Nh5 $18 {[%emt 0:25:58]} fxe6 {[%emt 0:00:28]} 21. Nxf6+ {[%emt 0:00:07]} ({White must play} 21. Rxf6 $18 exd5 22. Be3 (22. Rxd6 $2 Rxe2 23. Nxe2 Qe8 $19) 22... gxf6 23. Nxf6+ (23. Nxd5 Kh8 $11) 23... Kh8 24. Nxe8 (24. Ncxd5 Re5 $17) 24... Qxe8 25. Re1 (25. Nxd5 Qe5 $14)) 21... gxf6 $16 {[%emt 0:00:04]} 22. Rxf6 {[%emt 0:00:21] White attacks} Qd7 $2 {[%emt 0:05:04]} (22... exd5 $16 23. Qf3 c4 (23... Re1+ 24. Kf2 $16) 24. Qxd5+ (24. Rxd6 Qc5+ $14) 24... Re6) 23. Bh6 $2 {[%emt 0:09:25]} (23. Qh5 $1 $18 {and the rest is easy.}) 23... exd5 {[%emt 0:00:32] [#]} 24. Qf3 {[%emt 0:00:04][%cal Oa1f1] White is much more active.} Be5 {[%emt 0:01:21]} 25. Nxd5 {[%emt 0:01:30][%cal Oa1d1]} (25. Qxd5+ Qxd5 26. Nxd5 Rad8 27. Rxf8+ (27. Raf1 $2 Ng6 $19) 27... Rxf8 28. Bxf8 Rxd5 $19 (28... Bxb2 $2 29. Rd1 $19)) 25... Ng6 {[%emt 0:05:01] [#]} (25... Rad8 $14 26. Rd1 (26. Rf1 Ne6 $15) 26... Ne6 (26... Bxf6 27. Nxf6+ Kh8 28. Nxd7 Kg8 29. Nf6+ Kh8 30. Nxe8 Rxd1+ 31. Qxd1 Ne6 32. Qe2 Nd4 33. Qe5+ Kg8 34. Qg7#) (26... Bd4+ $2 27. Rxd4 cxd4 28. Rf5 $18)) 26. Rf5 {[%emt 0:00:47]} (26. Rd1 $1 $16 {[%cal Of6g6] aiming for Rxg6+!.} Qh3 27. Be3) 26... Rad8 $1 $14 {[%emt 0:02:06]} 27. Rd1 {[%emt 0:04:03] Strong Rooks White (d1+f5)} Qe6 {[%emt 0:02:58][%cal Og8h8]} 28. b3 {[%emt 0:05:20]} Kh8 {[%emt 0:02:59]} 29. Bg5 {[%emt 0:00:16] Inhibits Nh4.} Rf8 {[%emt 0:01:10]} 30. g4 {[%emt 0:00:35][%cal Og1h1] Kh1! poses a challenge} Rde8 {[%emt 0:02:45]} 31. Rf1 {[%emt 0:03:45][%cal Og5e7]} Qc6 {[%emt 0:01:54]} 32. h4 {[%emt 0:01:50]} Bg7 {[%emt 0:01:31]} (32... Rxf5 $11 33. gxf5 Nxh4 34. Bxh4 Qh6) 33. Nf6 {[%emt 0:02:36]} (33. h5 $14 Ne5 34. Qg2 Rxf5 35. Rxf5) 33... Qxf3 $11 {[%emt 0:00:41] Successful Defense Black. The position is equal.} 34. R5xf3 {[%emt 0:00:03]} Re6 {[%emt 0:02:12] aiming for ...h6.} 35. h5 {[%emt 0:00:57]} Ne5 {[%emt 0:00:13]} 36. Rf5 {[%emt 0:00:10]} h6 {[%emt 0:00:18]} 37. Bh4 {[%emt 0:00:46]} Nxg4 {[%emt 0:01:42]} 38. Nxg4 {[%emt 0:00:46]} Rxf5 {[%emt 0:00:04]} 39. Rxf5 {[%emt 0:00:04][%cal Og1g2]} Re4 {[%emt 0:00:04]} 40. Nxh6 {[%emt 0:01:32]} Rxh4 {[%emt 0:00:30][%mdl 4096] Endgame KRB-KRN} 41. Nf7+ {[%emt 0:01:22]} Kg8 {[%emt 0:00:55]} 42. Nd6 {[%emt 0:05:00][%cal Of5g5]} Bf8 {[%emt 0:11:45]} 43. Nxb7 {[%emt 0:03:32]} c4 {[%emt 0:00:08]} 44. bxc4 {[%emt 0:02:50]} Rxc4 {[%emt 0:00:05]} 45. Kg2 {[%emt 0:00:49]} Rb4 {[%emt 0:02:28]} 46. Nd8 {[%emt 0:01:09]} Ra4 {[%emt 0:00:50] Prevents Ra5} 47. Rf2 {[%emt 0:00:49]} Ra5 {[%emt 0:00:47]} 48. Ne6 {[%emt 0:00:20]} Bh6 {[%emt 0:00:13]} 49. Kg3 {[%emt 0:07:09]} Rxh5 {[%emt 0:00:22]} 50. Rf6 {[%emt 0:00:34]} Rh1 {[%emt 0:01:26]} 51. Kg2 {[%emt 0:02:42] Weighted Error Value: White=0.30/Black=0.29 (precise)   Loses game:     	---       	Black=2      Missed win:     	White=1     	---        Mistake:       	White=4     	Black=2      Inaccurate:     	White=5     	Black=2      OK:         	White=18    	Black=18     Best:        	White=2     	Black=4      Strong:       	---       	Black=1} 1/2-1/2

[Event "Karel Janecek Open 2025"]
[Site "Prague"]
[Date "2025.03.06"]
[Round "8.3"]
[White "Rubes, Jan"]
[Black "Pechac, Jergus"]
[Result "1/2-1/2"]
[Annotator "TA"]
[ECO "E11"]
[WhiteElo "2444"]
[BlackElo "2603"]
[PlyCount "32"]
[EventDate "2025.02.21"]
[EventType "swiss"]
[EventCountry "CZE"]
[SourceTitle "playchess.com"]
[Source "ChessBase"]
[SourceQuality "1"]
[TimeControl "40/5400+30:1800+30"]

{[%evp 11,32,20,20,2,0,7,4,8,12,-23,9,4,13,10,4,4,6,0,30,2,8,0,28]} 1. d4 {[%emt 0:00:03]} Nf6 {[%emt 0:02:51]} 2. Nf3 {[%emt 0:00:14]} d5 {[%emt 0:00:05]} 3. c4 {[%emt 0:00:07]} e6 {[%emt 0:00:04]} 4. g3 {[%emt 0:00:11]} Bb4+ {[%emt 0:00:05]} 5. Bd2 {[%emt 0:00:06]} a5 {[%emt 0:00:03]} 6. Bg2 {[%emt 0:00:10]} O-O {[%emt 0:00:05]} 7. a3 {[%emt 0:03:02] E11: Bogo-Indian.} Be7 {[%emt 0:00:09]} 8. Qc2 {[%emt 0:00:05]} c6 {[%emt 0:00:05]} 9. O-O {[%emt 0:00:08]} b6 {[%emt 0:00:03]} 10. Rc1 {[%emt 0:03:01]} Ba6 {[%emt 0:02:45]} 11. cxd5 {[%emt 0:00:30]} cxd5 {[%emt 0:00:06]} 12. Bf4 {[%emt 0:00:08]} Nbd7 {[%emt 0:00:06]} 13. Nc3 {[%emt 0:00:43]} Nh5 $146 {[%emt 0:00:06]} (13... Rc8 14. Qa4 Rc4 15. Qd1 b5 16. e3 Qb6 17. Bf1 Rc6 18. a4 b4 19. Nb5 Rfc8 20. Rxc6 Rxc6 {1-0 Carlsen,M (2830)-Firouzja,A (2738) Chess.com Classic Div 1 W rapid 2024 (4.3)}) 14. Bd2 {[%emt 0:01:22]} Qb8 {[%emt 0:00:07]} 15. a4 {[%emt 0:07:41]} Rc8 {[%emt 0:03:34]} 16. Qb3 {[%emt 0:00:30]} Bc4 {[%emt 0:13:45] An uneventful encounter.   Weighted Error Value: White=0.10 (very precise) /Black=0.08 (flawless)   Inaccurate:     	White=2     	Black=3      OK:         	White=3     	Black=2} 1/2-1/2

[Event "Karel Janecek Open 2025"]
[Site "Prague"]
[Date "2025.03.06"]
[Round "8.4"]
[White "Nyzhnyk, Illya"]
[Black "Druska, Juraj"]
[Result "1-0"]
[Annotator "TA"]
[ECO "D00"]
[WhiteElo "2569"]
[BlackElo "2442"]
[PlyCount "73"]
[EventDate "2025.02.21"]
[EventType "swiss"]
[EventCountry "CZE"]
[SourceTitle "playchess.com"]
[Source "ChessBase"]
[SourceQuality "1"]
[TimeControl "40/5400+30:1800+30"]

{[%evp 9,73,6,10,6,13,14,12,12,16,18,17,7,6,0,11,11,14,7,30,19,31,5,10,-77,-76,-10,-16,-119,-104,-121,-106,-114,160,159,158,159,249,251,248,260,255,254,250,251,253,248,277,275,465,405,426,418,400,392,458,418,512,509,509,503,29952,29942,5110,842,5535,4788]} 1. d4 {[%emt 0:00:04]} d5 {[%emt 0:00:20]} 2. Bf4 {[%emt 0:00:07]} Nf6 {[%emt 0:01:02]} 3. Nc3 {[%emt 0:00:05]} a6 {[%emt 0:01:55]} 4. e3 {[%emt 0:00:21]} Bf5 {[%emt 0:05:39]} 5. Nf3 {[%emt 0:01:22]} e6 {[%emt 0:00:49]} 6. Ne5 {[%emt 0:00:52] D00: 1 d4 d5: Unusual lines.} Nbd7 {[%emt 0:10:59][%cal Bb8d7,Bd7e5,Be5c6][%mdl 32]} 7. g4 {[%emt 0:01:06]} Nxe5 {[%emt 0:00:15]} 8. gxf5 {[%emt 0:01:03] The position is equal.} Nc6 {[%emt 0:00:46]} 9. fxe6 {[%emt 0:00:07]} fxe6 {[%emt 0:00:07]} 10. Bh3 {[%emt 0:00:54]} Qd7 {[%emt 0:01:39]} 11. a3 {[%emt 0:09:53]} Bd6 {[%emt 0:01:00]} 12. Bg5 $146 {[%emt 0:04:12]} ({Predecessor:} 12. Bxd6 cxd6 13. Qf3 O-O 14. Nxd5 Nxd5 15. Qxd5 Rf6 16. Qb3 Kh8 17. d5 Na5 18. Qb4 {1-0 Stefanova,A (2470)-Khotenashvili,B (2476) Hengshui IMSA blitz (Women) 2019 (4)}) 12... Qf7 {[%emt 0:01:31]} 13. Qe2 {[%emt 0:07:23]} O-O {[%emt 0:11:56]} 14. O-O-O {[%emt 0:04:05]} Kh8 {[%emt 0:00:32]} 15. Kb1 {[%emt 0:14:14]} b5 {[%emt 0:03:17]} 16. e4 {[%emt 0:02:52]} (16. Rhg1 $11 {remains equal.}) 16... b4 $1 $17 {[%emt 0:06:28]} 17. axb4 {[%emt 0:10:47]} Bxb4 {[%emt 0:00:08] Black sacrificed a pawn} 18. exd5 {[%emt 0:00:04]} (18. Bxf6 $1 $11 Qxf6 19. Qd3) 18... Bxc3 $1 {[%emt 0:14:19]} 19. dxc6 {[%emt 0:01:26]} Rab8 {[%emt 0:00:33]} 20. Bc1 {[%emt 0:05:58][%cal Od1d3] [#]} (20. Bxe6 Rxb2+ 21. Kc1 Ra2 (21... Qg6 22. Bxf6 Rxf6 23. Bb3 $14)) 20... Rxb2+ $2 {[%emt 0:20:07][%mdl 8192] Black attacks} 21. Bxb2 $16 {[%emt 0:00:09] White now steadily converts the win.} Rb8 {[%emt 0:00:05]} 22. Rd3 $1 {[%emt 0:03:39][%cal Bd1d3,Bd3f3,Bf3b3][%mdl 32]} Nd5 {[%emt 0:00:17] [#]} (22... Bxb2 $16 23. Rb3 (23. Qxe6 Bc3+ 24. Ka2 Rb2+ 25. Ka1 Rxc2+ 26. Kb1 Rb2+ 27. Kc1 Qf8 $18) (23. Bxe6 Qe8 $18) 23... Rxb3 24. cxb3 (24. Bxe6 Qe8 $18) 24... Bxd4 25. Qxe6 (25. Qxa6 $2 {is the wrong capture.} Qg6+ 26. Kc1 Qh6+ 27. Kc2 Qxh3 $19) 25... Qxe6 26. Bxe6 Bxf2) 23. Qf3 $1 $18 {[%emt 0:01:09]} Qxf3 {[%emt 0:12:45]} 24. Rxf3 {[%emt 0:00:04]} Bxb2 {[%emt 0:00:09] [#]} 25. Rb3 {[%emt 0:00:04]} Rxb3 {[%emt 0:00:05]} 26. cxb3 {[%emt 0:00:02]} Bxd4 {[%emt 0:00:06]} 27. Bxe6 {[%emt 0:00:06][%mdl 4096] Endgame KRB-KBN} Nc3+ {[%emt 0:00:19]} 28. Kc2 {[%emt 0:00:23]} Na2 $2 {[%emt 0:00:08]} (28... h6 {is a better defense.} 29. Bc4 Na2) 29. Kd3 {[%emt 0:00:29]} Be5 {[%emt 0:02:37]} 30. Kc4 {[%emt 0:00:30]} g6 {[%emt 0:01:29]} 31. Rd1 {[%emt 0:01:24]} Kg7 {[%emt 0:00:42]} 32. Rd2 {[%emt 0:02:54]} Nc3 {[%emt 0:03:44] [#]} 33. f4 $1 {[%emt 0:00:12]} Bxf4 {[%emt 0:00:17]} 34. Kxc3 {[%emt 0:00:55] and Rd7+ would now be decisive} Bxd2+ {[%emt 0:00:02]} (34... g5 $18 35. Re2 (35. Rd7+ Kf6 $18) 35... h5) 35. Kxd2 {[%emt 0:00:06]} Kf6 {[%emt 0:00:03]} 36. Bc8 {[%emt 0:00:08]} (36. Bd7 $142 h5 37. Kc3) 36... a5 {[%emt 0:00:06]} 37. Kc3 {[%emt 0:00:04] Weighted Error Value: White=0.35/Black=0.68  Mistake:       	White=2     	Black=4      Inaccurate:     	White=1     	---        OK:         	White=16    	Black=12     Best:        	White=1     	Black=3      Strong:       	White=2     	Black=2} 1-0

[Event "Karel Janecek Open 2025"]
[Site "Prague"]
[Date "2025.03.06"]
[Round "8.5"]
[White "Raja Rithvik R"]
[Black "Gkoumas, Georgios"]
[Result "1/2-1/2"]
[Annotator "TA"]
[ECO "C01"]
[WhiteElo "2522"]
[BlackElo "2438"]
[PlyCount "68"]
[EventDate "2025.02.21"]
[EventType "swiss"]
[EventCountry "CZE"]
[SourceTitle "playchess.com"]
[Source "ChessBase"]
[SourceQuality "1"]
[TimeControl "40/5400+30:1800+30"]

{[%evp 15,68,4,11,0,0,0,0,0,2,0,17,0,0,0,0,0,5,0,0,0,13,10,20,20,8,7,21,0,0,6,21,0,0,-45,-41,-43,-55,-66,-65,-79,-48,-55,-46,-53,-54,-63,0,0,0,0,0,0,0,0,0]} 1. e4 {[%emt 0:00:10]} e6 {[%emt 0:07:43]} 2. d4 {[%emt 0:00:08]} d5 {[%emt 0:00:05]} 3. exd5 {[%emt 0:00:06]} exd5 {[%emt 0:00:06]} 4. Nf3 {[%emt 0:00:04]} Bd6 {[%emt 0:02:16]} 5. Bd3 {[%emt 0:00:18]} Ne7 {[%emt 0:00:59]} 6. O-O {[%emt 0:00:11]} O-O {[%emt 0:00:39]} 7. Nc3 {[%emt 0:00:07][%cal Bb1c3,Bc3e2,Be2g3][%mdl 32]} c6 {[%emt 0:13:00]} 8. Ne2 {[%emt 0:00:19]} Bf5 {[%emt 0:02:07]} 9. Ng3 {[%emt 0:00:14] C01: French: Exchange Variation.} Bxd3 {[%emt 0:00:10]} 10. Qxd3 {[%emt 0:00:04]} Nd7 {[%emt 0:08:43]} 11. Re1 {[%emt 0:00:34]} Re8 {[%emt 0:04:54]} 12. Bg5 {[%emt 0:02:52]} f6 {[%emt 0:01:15]} 13. Bd2 {[%emt 0:00:05]} Nf8 {[%emt 0:00:27]} 14. Re2 {[%emt 0:01:49]} Qd7 {[%emt 0:04:25]} 15. Rae1 {[%emt 0:00:35]} Neg6 {[%emt 0:00:10]} 16. Nf5 $146 {[%emt 0:14:36]} ({Predecessor:} 16. Qf5 Rxe2 17. Rxe2 Bxg3 18. Qxd7 Bxh2+ 19. Kxh2 Nxd7 20. g3 Kf7 21. a3 Re8 22. Rxe8 Kxe8 {0-1 Mendez Nunez,J (1729)-Hernandez Perez,J (1957) Getxo Semana Santa U2200 op 1st 2019 (2)}) 16... Rxe2 {[%emt 0:01:46]} 17. Rxe2 {[%emt 0:00:05]} Bc7 {[%emt 0:06:28]} (17... Ne6 $5 18. g3 $8 Re8 $11) 18. g3 {[%emt 0:15:58] The position is symmetric and equal} Re8 {[%emt 0:00:34]} 19. Rxe8 {[%emt 0:00:25]} Qxe8 {[%emt 0:00:06]} 20. Bb4 {[%emt 0:00:31]} Qe6 {[%emt 0:02:10]} 21. h4 {[%emt 0:02:00]} a5 {[%emt 0:02:34]} 22. Ba3 {[%emt 0:01:12]} h5 {[%emt 0:01:39]} 23. Nd2 {[%emt 0:10:43]} b5 $1 {[%emt 0:07:10] White must now prevent ...b4.} 24. c3 {[%emt 0:01:01]} Qe1+ {[%emt 0:03:51] Black attacks} 25. Kg2 {[%emt 0:01:17]} Ne6 {[%emt 0:13:10]} 26. Nh6+ {[%emt 0:20:10]} Kh7 $1 {[%emt 0:00:15] Black has space advantage and is better} 27. Nf7 {[%emt 0:00:03] [#]} Nef4+ $1 {[%emt 0:04:39]} 28. gxf4 {[%emt 0:00:06][%cal Of7h8] Nh8! is the strong threat.} Qe6 $1 {[%emt 0:00:03]} (28... Qd1 29. Qf5 Qg4+ 30. Qxg4 hxg4 31. Bd6 Nxh4+ 32. Kh2 $18) 29. Ne5 {[%emt 0:06:34]} fxe5 {[%emt 0:00:09]} 30. fxe5 {[%emt 0:00:03] [#]} b4 {[%emt 0:01:56]} 31. cxb4 $11 {[%emt 0:03:04] The position is equal.} Qg4+ {[%emt 0:02:32]} 32. Kf1 {[%emt 0:01:09]} Qd1+ {[%emt 0:00:05]} 33. Kg2 {[%emt 0:00:03][%cal Od3f5]} Qg4+ {[%emt 0:00:07]} 34. Kf1 {[%emt 0:00:41]} Qd1+ {[%emt 0:02:04] Weighted Error Value: White=0.08 (flawless) /Black=0.08 (flawless)   Mistake:       	---       	Black=1      Inaccurate:     	White=1     	Black=1      OK:         	White=9     	Black=10     Best:        	White=3     	Black=3      Strong:       	---       	Black=3} 1/2-1/2